bitfinex/quotes_BTCUSD_20241120
["timestamp","ask_amount","ask_price","bid_price","bid_amount"]
[1732119659912,0.10711512,94042.0,94015.0,0.00423601]
[1732119660115,0.10711512,94042.0,93999.0,0.1246]
[1732119660116,0.01,94032.0,93999.0,0.1246]
[1732119660375,0.10711512,94031.0,93999.0,0.1246]
[1732119660580,0.10711512,94031.0,93998.0,0.0008543]
[1732119660581,0.01,94013.0,93998.0,0.0008543]
[1732119660783,0.10711512,94012.0,94004.0,0.0004539]
[1732119661007,0.10711512,94012.0,94005.0,0.00388284]
[1732119661385,0.5381,94015.0,94005.0,0.00388284]
[1732119661862,0.01,94034.0,94005.0,0.00388284]
[1732119662029,0.10711512,94033.0,94005.0,0.00388284]
[1732119662570,0.01,94032.0,94005.0,0.00388284]
[1732119662755,0.10711512,94031.0,94005.0,0.00473804]
[1732119663237,0.01,94029.0,94005.0,0.00473804]
[1732119663475,0.01,94018.0,94005.0,0.00473804]
[1732119663678,0.10711512,94029.0,94005.0,0.00473804]
[1732119663679,0.023,94031.0,94005.0,0.00473804]
[1732119663854,0.10711512,94030.0,94005.0,0.00473804]
[1732119665909,0.01,94027.0,94005.0,0.00473804]
[1732119666120,0.10711512,94026.0,94005.0,0.00473804]
[1732119666794,0.005,94015.0,94005.0,0.00473804]
[1732119667489,0.005,94015.0,94006.0,0.079]
[1732119667700,0.005,94015.0,94007.0,0.10711512]
[1732119667901,0.005,94015.0,94007.0,0.00406397]
[1732119668567,0.10711512,94014.0,94007.0,0.00406397]
[1732119668789,0.01,94012.0,94007.0,0.00406397]
[1732119669007,0.01,94012.0,94005.0,0.0008552]
[1732119669008,0.10711512,94011.0,94005.0,0.0008552]
[1732119669299,0.01,94008.0,94006.0,0.00372707]
[1732119669493,0.005,94015.0,94006.0,0.00341648]
[1732119669494,0.11711512,94007.0,94006.0,0.00341648]
[1732119669694,0.14011512,94007.0,94006.0,0.00341648]
[1732119670719,0.10711512,94007.0,94006.0,0.00341648]
[1732119671139,0.10711512,94007.0,93987.0,0.0008557]
[1732119671140,0.01,93999.0,93987.0,0.0008557]
[1732119671349,0.043,93977.0,93936.0,0.0757]
[1732119671556,0.02,93970.0,93936.0,0.0757]
[1732119671809,0.11711512,93969.0,93936.0,0.0757]
[1732119672021,0.19363663,93969.0,93936.0,0.0757]
[1732119672650,0.01,93963.0,93936.0,0.0757]
[1732119672850,0.01,93963.0,93909.0,0.0008573]
[1732119672851,0.01,93954.0,93915.0,0.0803]
[1732119673088,0.10711512,93953.0,93915.0,0.0803]
[1732119674651,0.212848,93964.0,93915.0,0.0803]
[1732119674652,0.65521512,93952.0,93915.0,0.0803]
[1732119674850,0.65521512,93952.0,93951.0,0.0012566]
[1732119675959,0.69853814,93952.0,93951.0,0.0012566]
[1732119676828,0.033,93948.0,93915.0,0.0803]
[1732119677047,0.67821512,93948.0,93915.0,0.0803]
[1732119677482,0.64521512,93948.0,93915.0,0.0803]
[1732119677695,0.67821512,93948.0,93915.0,0.0803]
[1732119678826,0.01,93942.0,93931.0,0.00036]
[1732119679032,0.10711512,93941.0,93931.0,0.00036]
[1732119679258,0.11711512,93941.0,93931.0,0.00036]
[1732119679522,0.033,93932.0,93931.0,0.00036]
[1732119679750,0.14011512,93932.0,93931.0,0.00036]
[1732119680425,0.13911512,93932.0,93931.0,0.00036]
[1732119681164,0.10711512,93932.0,93931.0,0.00036]
[1732119681774,0.15041656,93932.0,93931.0,0.00036]
[1732119683660,0.04330144,93932.0,93931.0,0.00036]
[1732119684064,0.5381,93936.0,93931.0,0.00036]
[1732119684480,0.58074013,93936.0,93931.0,0.00036]
[1732119685120,0.10711512,93935.0,93931.0,0.00036]
[1732119686200,0.04264013,93936.0,93931.0,0.00036]
[1732119686413,0.00106485,93934.0,93900.0,0.00388332]
[1732119686627,0.10817997,93945.0,93911.0,0.10711512]
[1732119686881,0.10817997,93945.0,93931.0,0.000857]
[1732119687114,0.023,93944.0,93931.0,0.000857]
[1732119687346,0.0104,93952.0,93931.0,0.000857]
[1732119687347,0.01,93941.0,93931.0,0.000857]
[1732119687553,0.13117997,93940.0,93931.0,0.000857]
[1732119688021,0.01,93932.0,93931.0,0.000857]
[1732119688227,0.67927997,93932.0,93931.0,0.000357]
[1732119688447,0.67821512,93932.0,93931.0,0.000357]
[1732119688670,0.14011512,93932.0,93931.0,0.000357]
[1732119688867,0.14117997,93932.0,93931.0,0.000357]
[1732119689300,0.67927997,93932.0,93931.0,0.000357]
[1732119689569,0.67821512,93932.0,93931.0,0.000357]
[1732119690243,0.66821512,93932.0,93931.0,0.000357]
[1732119691196,4e-05,93932.0,93931.0,0.000357]
[1732119691663,4e-05,93932.0,93931.0,0.00348742]
[1732119691864,0.04395379,93932.0,93931.0,0.000357]
[1732119692124,4e-05,93932.0,93931.0,0.00348742]
[1732119692314,4e-05,93932.0,93931.0,0.000357]
[1732119692525,4e-05,93932.0,93931.0,0.00348742]
[1732119692773,4e-05,93932.0,93931.0,0.01184822]
[1732119692993,0.00110485,93932.0,93931.0,0.00347948]
[1732119693475,4e-05,93932.0,93931.0,0.000357]
[1732119695024,0.01022883,93938.0,93931.0,0.000357]
[1732119695276,0.001714,93951.0,93931.0,0.000357]
[1732119695501,0.10711512,93950.0,93931.0,0.000357]
[1732119696573,0.023,93949.0,93931.0,0.000357]
[1732119696783,0.023,93948.0,93931.0,0.000357]
[1732119698730,0.023,93946.0,93931.0,0.000357]
[1732119698931,0.023,93944.0,93931.0,0.000357]
[1732119699133,0.10711512,93943.0,93931.0,0.000357]
[1732119699352,0.023,93942.0,93931.0,0.000357]
[1732119699588,0.023,93940.0,93931.0,0.000357]
[1732119699922,0.10711512,93939.0,93931.0,0.000357]
[1732119699923,0.023,93938.0,93931.0,0.000357]
[1732119700129,0.023,93936.0,93931.0,0.000357]
[1732119700539,0.31936,93935.0,93931.0,0.000357]
[1732119705515,0.36228141,93935.0,93931.0,0.000357]
[1732119705730,0.023,93934.0,93931.0,0.000357]
[1732119706293,0.31936,93933.0,93931.0,0.000357]
[1732119706867,0.023,93932.0,93931.0,0.000357]
[1732119707258,0.44947512,93932.0,93931.0,0.000357]
[1732119708980,0.31936,93932.0,93931.0,0.000357]
[1732119709943,0.2760744,93932.0,93931.0,0.000357]
[1732119715112,0.2760744,93932.0,93875.0,1.24319243]
[1732119715113,0.0485,93931.0,93875.0,1.24319243]
[1732119715333,0.10711512,93898.0,93882.0,0.0008555]
[1732119715755,0.10711512,93898.0,93875.0,1.24319243]
[1732119715756,0.90212663,93897.0,93875.0,1.24319243]
[1732119715983,0.09384421,93876.0,93875.0,1.24319243]
[1732119716223,0.14076632,93878.0,93875.0,1.24319243]
[1732119716430,0.10711512,93896.0,93875.0,1.24319243]
[1732119716431,0.27436,93876.0,93875.0,1.24319243]
[1732119716905,1.1062041,93876.0,93875.0,1.24319243]
[1732119717123,0.90268833,93876.0,93875.0,1.24319243]
[1732119717381,0.62100967,93876.0,93875.0,1.24319243]
[1732119717849,0.62100967,93876.0,93875.0,1.26619243]
[1732119718325,0.62100967,93876.0,93875.0,1.24319243]
[1732119719625,0.62043869,93876.0,93875.0,1.26619243]
[1732119721157,0.85480171,93876.0,93875.0,1.26619243]
[1732119721372,0.85478154,93876.0,93875.0,1.26619243]
[1732119721624,0.62043869,93876.0,93875.0,1.54990755]
[1732119721857,0.62043869,93876.0,93875.0,1.59408155]
[1732119721858,0.27436,93876.0,93875.0,1.59408155]
[1732119722099,0.09375133,93887.0,93876.0,0.123]
[1732119722300,0.23434285,93895.0,93876.0,0.123]
[1732119722301,0.09375133,93885.0,93878.0,0.123]
[1732119722531,0.09375133,93885.0,93880.0,0.123]
[1732119722741,0.2343651,93908.0,93887.0,0.023]
[1732119722952,0.39008712,93932.0,93889.0,0.023]
[1732119723205,0.2812576,93930.0,93891.0,0.123]
[1732119723428,0.2812576,93928.0,93892.0,0.10711512]
[1732119723645,0.45306076,93927.0,93893.0,0.05555911]
[1732119723864,0.34594564,93926.0,93894.0,0.1]
[1732119724125,0.10711512,93925.0,93895.0,0.023]
[1732119724326,0.34594564,93924.0,93897.0,0.023]
[1732119724531,0.45306076,93923.0,93897.0,0.023]
[1732119724738,0.36542775,93922.0,93899.0,0.023]
[1732119724939,0.45306076,93921.0,93899.0,0.023]
[1732119725150,0.01948211,93920.0,93899.0,0.023]
[1732119725420,0.10711512,93919.0,93899.0,0.023]
[1732119725594,0.01,93911.0,93875.0,1.24404963]
[1732119725840,0.10711512,93910.0,93875.0,1.24404963]
[1732119726074,0.10711512,93910.0,93876.0,0.00250506]
[1732119726321,0.34557889,93909.0,93877.0,0.00106516]
[1732119726531,0.02947159,93915.0,93876.0,0.10962018]
[1732119726532,0.10711512,93908.0,93876.0,0.10962018]
[1732119726773,0.10711512,93908.0,93878.0,0.00249259]
[1732119726986,0.10711512,93908.0,93879.0,0.00250044]
[1732119727242,0.10711512,93908.0,93875.0,1.24404963]
[1732119727498,0.10711512,93908.0,93880.0,0.00249966]
[1732119727725,0.10711512,93908.0,93875.0,1.24404963]
[1732119727968,0.10711512,93908.0,93881.0,0.00249887]
[1732119728184,0.10711512,93908.0,93882.0,0.0025126]
[1732119728392,0.01946613,93915.0,93883.0,0.023]
[1732119728610,0.0429202,93920.0,93885.0,0.023]
[1732119728847,0.0429202,93920.0,93887.0,0.023]
[1732119729056,0.0429202,93920.0,93889.0,0.023]
[1732119729293,0.0429202,93920.0,93891.0,0.023]
[1732119729526,0.0429202,93920.0,93892.0,0.10711512]
[1732119729772,0.0429202,93920.0,93893.0,0.023]
[1732119730012,0.0429202,93920.0,93889.0,0.0499]
[1732119730013,0.0429202,93920.0,93896.0,0.023]
[1732119730234,0.15003532,93920.0,93896.0,0.023]
[1732119730471,0.15003532,93920.0,93898.0,0.023]
[1732119730682,0.15003532,93920.0,93896.0,0.023]
[1732119731562,0.10711512,93919.0,93883.0,0.0769]
[1732119731819,0.01,93918.0,93883.0,0.0769]
[1732119732033,0.0429202,93920.0,93884.0,0.00244783]
[1732119732034,0.10711512,93917.0,93884.0,0.00244783]
[1732119732249,0.10711512,93917.0,93885.0,0.00793478]
[1732119732466,0.0429202,93920.0,93885.0,0.00793478]
[1732119732467,0.0429202,93920.0,93886.0,0.10711512]
[1732119732715,0.0429202,93920.0,93886.0,0.10956333]
[1732119732918,0.0429202,93920.0,93887.0,0.12043981]
[1732119733205,0.0429202,93920.0,93889.0,0.1]
[1732119733466,0.0429202,93920.0,93888.0,0.13011512]
[1732119733467,0.10711512,93919.0,93890.0,0.023]
[1732119733679,0.10711512,93919.0,93891.0,0.023]
[1732119733893,0.10711512,93919.0,93893.0,0.023]
[1732119734108,0.0771,93917.0,93892.0,0.00244505]
[1732119734348,0.01,93915.0,93894.0,0.00244348]
[1732119734558,0.10711512,93914.0,93876.0,0.10818023]
[1732119734768,0.10711512,93914.0,93876.0,0.10711512]
[1732119734975,0.20068874,93914.0,93889.0,0.0008575]
[1732119735192,0.10711512,93914.0,93889.0,0.0008575]
[1732119735641,0.0429202,93920.0,93889.0,0.0008575]
[1732119735873,0.10711512,93919.0,93889.0,0.0008575]
[1732119736091,0.06240818,93920.0,93891.0,0.023]
[1732119736326,0.06240818,93920.0,93889.0,0.0008575]
[1732119736327,0.0429202,93920.0,93894.0,0.023]
[1732119736565,0.0429202,93920.0,93896.0,0.023]
[1732119737086,0.0429202,93920.0,93898.0,0.023]
[1732119737325,0.0429202,93920.0,93900.0,0.023]
[1732119737759,0.10711512,93919.0,93902.0,0.023]
[1732119737976,0.10711512,93919.0,93901.0,0.00245544]
[1732119738224,0.10711512,93919.0,93893.0,0.0752]
[1732119738439,0.10711512,93919.0,93894.0,0.00760575]
[1732119738644,0.01,93916.0,93894.0,0.01006592]
[1732119738854,0.10711512,93915.0,93894.0,0.00246017]
[1732119739068,0.10711512,93915.0,93880.0,0.1]
[1732119740210,0.09357362,93917.0,93882.0,0.023]
[1732119740425,0.10711512,93914.0,93887.0,0.042867]
[1732119741096,0.10711512,93914.0,93890.0,0.00245938]
[1732119741313,0.10711512,93914.0,93879.0,0.0827]
[1732119741314,0.01,93906.0,93879.0,0.0827]
[1732119741532,0.01,93906.0,93870.0,0.0002]
[1732119741533,0.11711512,93905.0,93870.0,0.0002]
[1732119741748,0.11711512,93905.0,93873.0,0.04225682]
[1732119741749,0.01,93903.0,93873.0,0.04225682]
[1732119741959,0.10711512,93902.0,93870.0,0.0002]
[1732119742439,0.01,93896.0,93870.0,0.0002]
[1732119742655,0.10711512,93895.0,93870.0,0.0002]
[1732119744518,0.15009276,93895.0,93870.0,0.0002]
[1732119745685,0.01,93893.0,93870.0,0.0002]
[1732119745903,0.10711512,93892.0,93870.0,0.0002]
[1732119746777,0.01,93888.0,93870.0,0.0002]
[1732119746986,0.10711512,93887.0,93870.0,0.0002]
[1732119749692,0.01,93886.0,93870.0,0.0002]
[1732119749924,0.12661964,93885.0,93870.0,0.0002]
[1732119750174,0.10711512,93885.0,93870.0,0.0002]
[1732119750880,0.10711512,93885.0,93875.0,1.05691203]
[1732119752268,0.15080284,93885.0,93875.0,1.05691203]
[1732119752502,0.04368772,93885.0,93875.0,1.05691203]
[1732119752931,0.01949067,93892.0,93875.0,1.05691203]
[1732119753146,0.12660579,93900.0,93875.0,1.05691203]
[1732119753366,0.10711512,93900.0,93875.0,1.05691203]
[1732119754890,0.12660579,93900.0,93875.0,1.05691203]
[1732119755143,0.10711512,93900.0,93875.0,1.05691203]
[1732119755378,0.1065,93897.0,93875.0,1.05691203]
[1732119755591,0.04355818,93901.0,93875.0,1.05691203]
[1732119755592,0.10711512,93896.0,93875.0,1.05691203]
[1732119756080,0.01,93876.0,93875.0,0.7573977]
[1732119756291,0.66521512,93876.0,93875.0,0.40122781]
[1732119756495,1.02989144,93876.0,93875.0,0.38122781]
[1732119756705,0.82495599,93876.0,93875.0,0.38122781]
[1732119756916,0.68471607,93876.0,93875.0,0.38122781]
[1732119757131,0.72786315,93876.0,93875.0,0.38122781]
[1732119757345,0.71786315,93876.0,93875.0,0.38122781]
[1732119757791,0.70786315,93876.0,93875.0,0.38122781]
[1732119758253,0.6883622,93876.0,93875.0,0.38122781]
[1732119760315,0.70784773,93876.0,93875.0,0.38122781]
[1732119761263,0.27324696,93876.0,93875.0,0.28664378]
[1732119761473,0.27324696,93876.0,93870.0,0.0002]
[1732119761474,0.126528,93872.0,93870.0,0.0002]
[1732119761688,0.59821896,93872.0,93870.0,0.0002]
[1732119761899,0.831834,93872.0,93870.0,0.0002]
[1732119762134,0.60021896,93872.0,93870.0,0.0002]
[1732119763085,0.01,93858.0,93853.0,0.0008573]
[1732119763307,0.11711512,93858.0,93853.0,0.0008573]
[1732119763563,0.21051963,93858.0,93853.0,0.0008573]
[1732119763769,0.11711512,93858.0,93853.0,0.0008573]
[1732119763988,0.13660065,93858.0,93853.0,0.0008573]
[1732119764459,0.66521512,93858.0,93853.0,0.0008573]
[1732119764690,0.68470065,93858.0,93853.0,0.0008573]
[1732119765156,0.77810582,93858.0,93853.0,0.0008573]
[1732119765367,0.78010582,93858.0,93853.0,0.0008573]
[1732119765583,0.68670065,93858.0,93853.0,0.0008573]
[1732119765808,0.68470065,93858.0,93853.0,0.0008573]
[1732119766267,0.66470065,93858.0,93853.0,0.0008573]
[1732119766493,0.67470065,93858.0,93853.0,0.0008573]
[1732119766746,0.79324365,93858.0,93853.0,0.0008573]
[1732119766951,0.01,93854.0,93853.0,0.0008573]
[1732119767164,0.01,93852.0,93831.0,0.0004]
[1732119767380,0.1365594,93852.0,93831.0,0.0004]
[1732119767859,0.1265594,93852.0,93831.0,0.0004]
[1732119768075,0.1365594,93851.0,93831.0,0.0004]
[1732119768290,0.11711512,93851.0,93831.0,0.0004]
[1732119768533,0.11711512,93838.0,93831.0,0.0004]
[1732119768750,0.13656358,93838.0,93831.0,0.0004]
[1732119770043,0.11711512,93838.0,93831.0,0.0004]
[1732119770285,0.76178112,93838.0,93831.0,0.0004]
[1732119770487,0.02,93833.0,93831.0,0.0004]
[1732119770714,0.66521512,93833.0,93831.0,0.0004]
[1732119770921,0.68466358,93833.0,93831.0,0.0004]
[1732119771151,0.79323558,93833.0,93831.0,0.0004]
[1732119771377,0.01,93823.0,93821.0,0.17747696]
[1732119771589,0.10711512,93822.0,93821.0,0.17747696]
[1732119772439,0.10711512,93822.0,93813.0,0.0002]
[1732119772440,0.02,93816.0,93813.0,0.0002]
[1732119772675,0.02,93816.0,93811.0,0.00165304]
[1732119772676,0.02,93812.0,93811.0,0.00165304]
[1732119772900,0.66521512,93812.0,93811.0,0.00165304]
[1732119773121,0.68466358,93812.0,93811.0,0.00165304]
[1732119773332,0.01,93806.0,93779.0,7e-05]
[1732119773550,0.01,93809.0,93779.0,7e-05]
[1732119773551,0.10711512,93805.0,93779.0,7e-05]
[1732119773788,0.507982,93813.0,93779.0,7e-05]
[1732119773789,0.01,93802.0,93779.0,7e-05]
[1732119774031,0.12711512,93802.0,93801.0,7.986e-05]
[1732119774244,0.66521512,93802.0,93801.0,7.986e-05]
[1732119774453,0.77382212,93802.0,93801.0,7.986e-05]
[1732119774666,0.86705005,93802.0,93801.0,7.986e-05]
[1732119774878,0.77382212,93802.0,93801.0,7.986e-05]
[1732119775105,0.79321321,93802.0,93801.0,7.986e-05]
[1732119775334,0.128608,93801.0,93800.0,0.01419274]
[1732119775545,0.02,93797.0,93779.0,7e-05]
[1732119775752,0.22711512,93797.0,93779.0,7e-05]
[1732119775960,0.10711512,93797.0,93779.0,7e-05]
[1732119776389,0.10711512,93797.0,93763.0,0.0008585]
[1732119776599,0.10711512,93796.0,93763.0,0.0008585]
[1732119777253,0.10711512,93795.0,93764.0,0.23401512]
[1732119777456,0.10711512,93795.0,93764.0,0.1269]
[1732119777723,0.10711512,93795.0,93765.0,0.01277585]
[1732119780687,0.5381,93796.0,93765.0,0.01277585]
[1732119780688,0.5381,93796.0,93766.0,0.10711512]
[1732119781591,0.04397573,93804.0,93773.0,0.01]
[1732119781801,0.04397573,93804.0,93775.0,0.0497]
[1732119782040,0.042607,93809.0,93778.0,0.01]
[1732119782250,0.042607,93809.0,93780.0,0.033]
[1732119782488,0.04250586,93825.0,93789.0,0.0876]
[1732119782742,0.04250586,93825.0,93795.0,0.0776]
[1732119782948,0.042592,93842.0,93798.0,0.01]
[1732119783176,0.5381,93858.0,93807.0,0.0876]
[1732119783390,0.002,93860.0,93808.0,0.1242109]
[1732119783391,0.10711512,93849.0,93808.0,0.1242109]
[1732119783618,0.11711512,93849.0,93808.0,0.10711512]
[1732119783846,0.10711512,93849.0,93808.0,0.10711512]
[1732119784119,0.10711512,93849.0,93811.0,0.023]
[1732119785055,0.001716,93858.0,93827.0,0.1]
[1732119785296,0.001716,93858.0,93828.0,0.13567878]
[1732119785506,0.001716,93858.0,93834.0,0.01]
[1732119785718,0.001716,93858.0,93836.0,0.1]
[1732119785930,0.001716,93858.0,93837.0,0.10711512]
[1732119786145,0.001716,93858.0,93843.0,0.0474]
[1732119786356,0.001716,93858.0,93849.0,0.01]
[1732119786598,0.001716,93858.0,93850.0,0.10711512]
[1732119786836,0.001716,93858.0,93854.0,0.023]
[1732119787045,0.001716,93858.0,93857.0,0.02]
[1732119787252,0.001716,93858.0,93857.0,0.25011512]
[1732119787456,0.001716,93858.0,93857.0,0.27512663]
[1732119787668,0.001716,93858.0,93857.0,0.25212663]
[1732119788133,0.001716,93858.0,93857.0,0.1]
[1732119788349,0.001716,93858.0,93832.0,0.178]
[1732119788350,0.001716,93858.0,93844.0,0.0797]
[1732119788612,0.001716,93858.0,93829.0,0.0802]
[1732119788613,0.10711512,93857.0,93829.0,0.0802]
[1732119789229,0.001716,93858.0,93830.0,0.11818075]
[1732119789476,0.001716,93858.0,93832.0,0.01]
[1732119789680,0.001716,93858.0,93833.0,0.12784663]
[1732119790565,0.001716,93858.0,93834.0,0.00106568]
[1732119791046,0.001716,93858.0,93835.0,0.10711512]
[1732119791935,0.001716,93858.0,93833.0,0.02073151]
[1732119792410,0.001716,93858.0,93824.0,0.0489]
[1732119792411,0.10711512,93857.0,93824.0,0.0489]
[1732119792652,0.10711512,93857.0,93751.0,0.1292842]
[1732119792653,0.106562,93842.0,93810.0,0.0762]
[1732119792898,0.10711512,93854.0,93811.0,0.01332]
[1732119792899,0.10711512,93841.0,93811.0,0.01332]
[1732119793809,0.21367812,93841.0,93811.0,0.01332]
[1732119794038,0.21367812,93841.0,93799.0,0.01]
[1732119794039,0.01,93838.0,93790.0,0.0786]
[1732119794264,0.106571,93834.0,93794.0,0.01]
[1732119794492,0.21368812,93833.0,93795.0,0.10711512]
[1732119794722,0.21368812,93833.0,93796.0,0.0196089]
[1732119794723,0.05458477,93832.0,93796.0,0.0196089]
[1732119794958,0.05458477,93832.0,93796.0,0.12672402]
[1732119794959,0.10711512,93831.0,93796.0,0.12672402]
[1732119795391,0.10711512,93831.0,93797.0,0.1]
[1732119795621,0.10711512,93831.0,93798.0,0.00106599]
[1732119796091,0.09295094,93840.0,93799.0,0.11711512]
[1732119796316,0.5381,93842.0,93799.0,0.11711512]
[1732119796317,0.10711512,93838.0,93799.0,0.14089412]
[1732119796540,0.10711512,93838.0,93800.0,0.01944251]
[1732119796856,0.10711512,93837.0,93802.0,0.1]
[1732119797025,0.10711512,93837.0,93803.0,0.10711512]
[1732119797234,0.10711512,93837.0,93789.0,0.0585]
[1732119797235,0.21314,93835.0,93804.0,0.02365576]
[1732119797447,0.02168875,93836.0,93790.0,0.1986]
[1732119797448,0.10711512,93834.0,93790.0,0.1986]
[1732119797677,0.10711512,93834.0,93792.0,0.1]
[1732119797919,0.10711512,93834.0,93793.0,0.10711512]
[1732119798187,0.10711512,93834.0,93798.0,0.01]
[1732119798415,0.10711512,93834.0,93799.0,0.10818101]
[1732119798648,0.5381,93841.0,93799.0,0.11818101]
[1732119798883,0.10711512,93834.0,93800.0,0.0141181]
[1732119799105,0.09997042,93840.0,93800.0,0.0141181]
[1732119799106,0.10711512,93833.0,93800.0,0.0141181]
[1732119799315,0.10711512,93833.0,93794.0,0.01]
[1732119799494,0.10711512,93833.0,93796.0,0.1]
[1732119799754,0.10711512,93833.0,93797.0,0.02886]
[1732119800220,0.10711512,93833.0,93798.0,0.00106599]
[1732119800680,0.10711512,93833.0,93799.0,0.10711512]
[1732119803075,0.09316433,93838.0,93800.0,0.00106593]
[1732119803305,0.04260778,93842.0,93806.0,0.01]
[1732119803518,0.1497229,93842.0,93810.0,0.01]
[1732119803767,0.09316433,93852.0,93812.0,0.1]
[1732119803981,0.539816,93858.0,93815.0,0.01]
[1732119803982,0.04377712,93848.0,93815.0,0.01]
[1732119804261,0.001716,93858.0,93814.0,0.01]
[1732119804262,0.10711512,93852.0,93817.0,0.11]
[1732119804493,0.001716,93858.0,93823.0,0.01]
[1732119804494,0.10883112,93858.0,93823.0,0.01]
[1732119804702,0.15207674,93858.0,93825.0,0.1]
[1732119804908,0.001716,93858.0,93827.0,0.1]
[1732119805161,0.001716,93858.0,93826.0,0.14329224]
[1732119805162,0.10711512,93857.0,93826.0,0.03511151]
[1732119805389,0.001716,93858.0,93827.0,0.10711512]
[1732119805614,0.001716,93858.0,93828.0,0.12311151]
[1732119805876,0.001716,93858.0,93828.0,0.24022663]
[1732119806305,0.10883112,93858.0,93828.0,0.23022663]
[1732119807198,0.001716,93858.0,93830.0,0.01]
[1732119807407,0.001716,93858.0,93832.0,0.1]
[1732119807634,0.0017168,93842.0,93833.0,0.10711512]
[1732119808340,0.0017168,93842.0,93832.0,0.1]
[1732119808570,0.0017168,93842.0,93833.0,0.01475292]
[1732119808805,0.0017168,93842.0,93818.0,0.01]
[1732119808806,0.0017168,93842.0,93825.0,0.10711512]
[1732119809037,0.0017168,93842.0,93825.0,0.11711512]
[1732119809246,0.0017168,93842.0,93826.0,0.02843132]
[1732119809490,0.0017168,93842.0,93827.0,0.10711512]
[1732119810191,0.0017168,93842.0,93827.0,0.11711512]
[1732119810396,0.0017168,93842.0,93828.0,0.1]
[1732119810608,0.0017168,93842.0,93832.0,0.01]
[1732119810821,0.0017168,93842.0,93833.0,0.13384184]
[1732119811040,0.0017168,93842.0,93833.0,0.14384184]
[1732119811485,0.0017168,93842.0,93838.0,0.01]
[1732119811716,0.0017168,93842.0,93841.0,0.01]
[1732119811942,8e-07,93842.0,93841.0,0.30838054]
[1732119812152,8e-07,93842.0,93841.0,0.35571512]
[1732119812452,0.001716,93858.0,93853.0,0.01]
[1732119812696,0.001716,93858.0,93857.0,0.0405]
[1732119812914,0.0439775,93871.0,93866.0,0.01]
[1732119813148,0.0439775,93871.0,93869.0,0.01]
[1732119813393,0.0017154,93885.0,93870.0,0.10711512]
[1732119814583,0.0017154,93885.0,93874.0,0.01]
[1732119814796,0.0017154,93885.0,93875.0,0.10711512]
[1732119815034,0.0017154,93885.0,93875.0,0.2532118]
[1732119815255,0.0017154,93885.0,93875.0,0.29834676]
[1732119815465,0.0017154,93885.0,93882.0,0.01]
[1732119815719,0.0017154,93885.0,93883.0,0.10711512]
[1732119815948,0.0017154,93885.0,93884.0,0.11171151]
[1732119816190,0.0017154,93885.0,93884.0,0.2486325]
[1732119816638,0.0017154,93885.0,93884.0,0.01171151]
[1732119816847,0.0017154,93885.0,93875.0,0.0462]
[1732119817061,0.0017154,93885.0,93875.0,0.15048463]
[1732119817271,0.106494,93902.0,93861.0,0.0494]
[1732119817501,0.10711512,93901.0,93869.0,0.00802]
[1732119817940,0.10711512,93901.0,93884.0,0.05]
[1732119818157,0.03106003,93909.0,93884.0,0.05]
[1732119818376,0.663,93910.0,93870.0,0.10711512]
[1732119818377,0.12653228,93908.0,93870.0,0.10711512]
[1732119818593,0.12590516,93907.0,93871.0,0.02494817]
[1732119818845,0.212974,93909.0,93869.0,0.00802]
[1732119818846,0.12653111,93906.0,93869.0,0.00802]
[1732119819057,0.01941599,93905.0,93870.0,0.01423666]
[1732119819287,0.12653111,93904.0,93870.0,0.01423666]
[1732119819515,0.01941599,93903.0,93870.0,0.01423666]
[1732119819753,0.12653111,93902.0,93871.0,0.01466033]
[1732119819978,0.01941599,93901.0,93871.0,0.01466033]
[1732119820169,0.12653111,93900.0,93872.0,0.01470269]
[1732119820426,0.01941599,93899.0,93872.0,0.01470269]
[1732119820635,0.001713,93876.0,93873.0,0.1081803]
[1732119820868,0.001713,93876.0,93874.0,0.02552496]
[1732119821101,0.001713,93876.0,93875.0,0.10818021]
[1732119821572,0.01939648,93911.0,93878.0,0.01]
[1732119821782,0.04265719,93912.0,93884.0,0.01]
[1732119821992,0.04265719,93912.0,93885.0,0.10711512]
[1732119822955,0.04265719,93912.0,93887.0,0.01]
[1732119823153,0.04265719,93912.0,93888.0,0.10711512]
[1732119823364,0.04265719,93912.0,93889.0,0.01641151]
[1732119823567,0.04265719,93912.0,93890.0,0.18911512]
[1732119823797,0.001715,93914.0,93890.0,0.18911512]
[1732119823798,0.001715,93914.0,93899.0,0.01]
[1732119824082,0.001715,93914.0,93900.0,0.10711512]
[1732119824309,0.001715,93914.0,93895.0,0.01]
[1732119824310,0.001715,93914.0,93901.0,0.01171151]
[1732119824540,0.001715,93914.0,93892.0,0.10711512]
[1732119825230,0.001715,93914.0,93893.0,0.00106489]
[1732119825472,0.001715,93914.0,93898.0,0.01]
[1732119825734,0.001715,93914.0,93895.0,0.1]
[1732119825735,0.001715,93914.0,93899.0,0.13993312]
[1732119826425,0.001715,93914.0,93890.0,0.082]
[1732119826673,0.001715,93914.0,93891.0,0.10711512]
[1732119827367,0.10883012,93914.0,93890.0,0.082]
[1732119827605,0.10883012,93914.0,93876.0,0.01]
[1732119827606,0.212965,93912.0,93876.0,0.083]
[1732119827901,0.106489,93906.0,93872.0,0.04352519]
[1732119828005,0.09303414,93906.0,93865.0,0.083]
[1732119828240,0.09303414,93906.0,93866.0,0.10818035]
[1732119828241,0.10711512,93905.0,93866.0,0.10818035]
[1732119828467,0.20014926,93905.0,93866.0,0.11711512]
[1732119828701,0.40578371,93905.0,93867.0,0.02427812]
[1732119828926,0.21892262,93904.0,93867.0,0.02427812]
[1732119829178,0.20014926,93903.0,93867.0,0.02427812]
[1732119829406,0.21299,93901.0,93867.0,0.02427812]
[1732119829633,0.21299,93901.0,93857.0,0.0494]
[1732119829634,0.10711512,93900.0,93857.0,0.0494]
[1732119829859,0.09303414,93899.0,93858.0,0.10711512]
[1732119830080,0.09303414,93899.0,93859.0,0.13592151]
[1732119830081,0.20014926,93898.0,93859.0,0.13592151]
[1732119830330,0.09303414,93896.0,93860.0,0.10711512]
[1732119830569,0.10711512,93898.0,93860.0,0.10711512]
[1732119830570,0.10711512,93895.0,93860.0,0.10711512]
[1732119830813,0.10711512,93895.0,93861.0,0.0269089]